fUST/lending_fUST_20240111
["ID","MTS","AMOUNT","RATE_DAILY","PERIOD"]
[311136954,1704929438852,-236.79527182,0.0002,2]
[311136955,1704929438863,-155.08529691,0.0002,2]
[311136956,1704929438872,-676.96253794,0.0002,2]
[311136957,1704929438882,-270734.30120863,0.0002,2]
[311136958,1704929438892,-266.19065175,0.0002,2]
[311136959,1704929438903,-115053.54509343,0.0002,2]
[311136960,1704929438912,-155.07753877,0.0002,2]
[311136961,1704929438921,-546.7810851,0.0002,2]
[311136962,1704929438931,-500.0,0.00020737,2]
[311136963,1704929438940,-326.73090334,0.00021,2]
[311136964,1704929438950,-500.0,0.00021737,2]
[311136965,1704929438958,-166.666666,0.00021918,2]
[311136966,1704929438968,-156.86767994,0.00022,2]
[311136967,1704929438977,-4917.8600325,0.00022,2]
[311136968,1704929438986,-3931.75997852,0.00022,2]
[311136969,1704929438995,-2138.00848953,0.00022125,5]
[311136970,1704929439005,-166.666666,0.00022431,2]
[311136971,1704929439014,-373.364595,0.00022434,2]
[311136972,1704929439024,-155.07753877,0.000225,2]
[311136973,1704929439035,-500.0,0.00022737,2]
[311136974,1704929439050,-166.666666,0.00022944,2]
[311136975,1704929439059,-9920.80434626,0.00023,2]
[311136976,1704929439070,-2093.08732709,0.00023,2]
[311136977,1704929439081,-500.0,0.00023288,2]
[311136978,1704929439092,-500.0,0.00023288,2]
[311136979,1704929439102,-443.81468154,0.00023288,2]
[311136980,1704929439112,-500.0,0.00023288,2]
[311136981,1704929439122,-500.0,0.00023288,2]
[311136982,1704929439131,-500.0,0.00023288,2]
[311136983,1704929439141,-500.0,0.00023288,2]
[311136984,1704929439151,-600.20189117,0.00023288,2]
[311136985,1704929439160,-500.0,0.00023288,2]
[311136986,1704929439170,-500.0,0.00023288,2]
[311136987,1704929439180,-619.97943846,0.00023288,2]
[311136988,1704929439190,-500.0,0.00023288,2]
[311136989,1704929439199,-317.07277119,0.00023288,2]
[311136990,1704929439209,-500.0,0.00023288,2]
[311136991,1704929439218,-500.0,0.00023288,2]
[311136992,1704929439228,-500.0,0.00023288,2]
[311136993,1704929439237,-428.64566503,0.00023288,2]
[311136994,1704929439246,-500.0,0.00023288,2]
[311136995,1704929439256,-500.0,0.00023288,2]
[311136996,1704929439265,-500.0,0.00023288,2]
[311136997,1704929439275,-500.0,0.00023288,2]
[311136998,1704929439286,-500.0,0.00023288,2]
[311136999,1704929439302,-166.666666,0.00023456,2]
[311137000,1704929439311,-677.61411434,0.00023737,2]
[311137002,1704929439321,-166.666666,0.00023969,2]
[311137003,1704929439331,-166.666666,0.00024482,2]
[311137004,1704929439340,-373.364595,0.00024968,2]
[311137005,1704929439350,-499.42350709,0.0002498,5]
[311137006,1704929439359,-677.45880314,0.00025,2]
[311137007,1704929439369,-4711.08145103,0.00025,2]
[311137008,1704929439379,-3000.0,0.00025,2]
[311137009,1704929439389,-525.91402641,0.00026,2]
[311137010,1704929439398,-976.0012481,0.00026033,2]
[311137011,1704929439408,-620.21088528,0.000264,2]
[311137012,1704929439418,-712.90470562,0.000264,2]
[311137013,1704929439427,-881.54048978,0.00026663,2]
[311137014,1704929439437,-733.25771754,0.00027,2]
[311137015,1704929439448,-500.0,0.00027397,2]
[311137016,1704929439458,-18431.7,0.00027397,3]
[311137017,1704929439467,-26716.66,0.00027397,3]
[311137018,1704929439477,-22263.88,0.00027397,3]
[311137019,1704929439486,-373.364595,0.00027502,2]
[311137020,1704929439495,-500.0,0.00027534,2]
[311137021,1704929439505,-500.0,0.00027671,2]
[311137022,1704929439514,-687.59711705,0.000277,2]
[311137023,1704929439524,-620.01054426,0.0002772,2]
[311137024,1704929439533,-624.64523528,0.0002772,2]
[311137025,1704929439545,-500.0,0.00027808,2]
[311137026,1704929439555,-500.0,0.00027945,2]
[311137027,1704929439565,-3089.70069499,0.00027998,2]
[311137028,1704929439574,-157.52979972,0.00028,2]
[311137029,1704929439583,-500.0,0.00028082,2]
[311137030,1704929439592,-500.0,0.00028219,2]
[311137031,1704929439602,-1689.28771256,0.00028346,2]
[311137032,1704929439611,-214.74185366,0.00028347,2]
[311137033,1704929439620,-500.0,0.00028356,2]
[311137034,1704929439630,-500.0,0.00028493,2]
[311137035,1704929439639,-151.07402627,0.00028532,7]
[311137036,1704929439648,-638.70558675,0.0002863,2]
[311137037,1704929439657,-254.05524745,0.00028701,3]
[311137038,1704929439666,-5565.2397557,0.000289,2]
[311137039,1704929439675,-573.30667832,0.00028922,2]
[311137041,1704929439684,-309.7831518,0.00028923,2]
[311137043,1704929439694,-4035.23913107,0.00028924,2]
[311137045,1704929439703,-50490.74786144,0.00028925,2]
[311137047,1704929439712,-35233.41163492,0.00028937,4]
[311137049,1704929439721,-201.90025642,0.00028937,2]
[311137051,1704929439730,-3723.18727344,0.00028937,2]
[311137052,1704929439740,-50000.0,0.00028937,2]
[311137054,1704929439749,-56068.85955461,0.00028937,2]
[311137056,1704929439758,-500.0,0.00028966,4]
[311137058,1704929439769,-500.0,0.00028966,4]
[311137060,1704929439778,-268.22145302,0.00028966,4]
[311137062,1704929439787,-500.0,0.00028966,4]
[311137064,1704929439802,-500.0,0.00028966,4]
[311137066,1704929439812,-476.26474749,0.00028966,4]
[311137068,1704929439826,-475.67428333,0.00028966,4]
[311137069,1704929439835,-373.16504356,0.00028966,4]
[311137072,1704929439845,-500.0,0.00028966,4]
[311137074,1704929439855,-500.0,0.00028966,4]
[311137076,1704929439864,-399.38730921,0.00028966,4]
[311137078,1704929439874,-154.05037578,0.00028966,4]
[311137080,1704929439884,-500.0,0.00028966,4]
[311137082,1704929439893,-500.0,0.00028966,4]
[311137084,1704929439903,-215.80473145,0.00028966,4]
[311137086,1704929439913,-500.0,0.00028966,4]
[311137088,1704929439922,-500.0,0.00028966,4]
[311137089,1704929439932,-50000.0,0.00028967,3]
[311137093,1704929439942,-10339.65016838,0.00028967,3]
[311137114,1704929440080,-10202.84952288,0.00028967,3]
[311137116,1704929440092,-29457.50030874,0.00028967,3]
[311137118,1704929440102,-57794.37069957,0.00028967,3]
[311137120,1704929440111,-1982.97164167,0.00029,2]
[311137121,1704929440120,-278.6600559,0.00029,2]
[311137123,1704929440129,-1000.0,0.00029,2]
[311137125,1704929440138,-620.00052721,0.00029106,2]
[311137127,1704929440147,-620.23226176,0.00029106,2]
[311137129,1704929440157,-151.07402627,0.00029114,4]
[311137133,1704929440272,-1821.85168105,0.000295,2]
[311137135,1704929440281,-300.0,0.000295,2]
[311137137,1704929440292,-763.40324942,0.000295,2]
[311137139,1704929440301,-200.0,0.000295,2]
[311137141,1704929440312,-3313.2630203,0.000295,2]
[311137142,1704929440321,-501.0,0.000295,2]
[311137143,1704929440330,-305.01426273,0.000295,2]
[311137145,1704929440341,-1500.0,0.000295,2]
[311137147,1704929440350,-150.26820741,0.0002955,2]
[311137149,1704929440360,-189.40584721,0.00029604,2]
[311137151,1704929440370,-150.26820741,0.00029607,2]
[311137153,1704929440379,-151.07402627,0.00029708,2]
[311137155,1704929440388,-150.26820741,0.00029854,2]
[311137157,1704929440399,-9098.22062588,0.00029931,4]
[311137159,1704929440409,-6973.85683356,0.0003,4]
[311137161,1704929440419,-165.56576911,0.0003,7]
[311137163,1704929440428,-282.5931468,0.0003,3]
[311137165,1704929440438,-15040.0244209,0.0003,4]
[311137167,1704929440448,-463.38099934,0.0003,4]
[311137169,1704929440458,-279.76130408,0.0003,4]
[311137171,1704929440468,-686.6335406,0.0003,4]
[311137173,1704929440477,-639.65046808,0.0003,4]
[311137175,1704929440488,-1200.0,0.0003,4]
[311137177,1704929440498,-238.0,0.0003,2]
[311137179,1704929440508,-373.364595,0.00030036,2]
[311137180,1704929440519,-38363.65059237,0.00030037,3]
[311137182,1704929440529,-182.389996,0.00030073,2]
[311137184,1704929440538,-182.389996,0.00030073,2]
[311137186,1704929440552,-164.471897,0.00030073,2]
[311137188,1704929440562,-152.788532,0.00030073,2]
[311137189,1704929440572,-410.37749,0.00030073,2]
[311137190,1704929440582,-6165.34199068,0.00030131,4]
[311137191,1704929440592,-3344.22678176,0.00030132,2]
[311137192,1704929440602,-614.01289661,0.00030132,4]
[311137193,1704929440611,-806.31846376,0.00030133,4]
[311137194,1704929440620,-268.31978961,0.00030133,4]
[311137195,1704929440630,-910.63934286,0.00030133,4]
[311137196,1704929440640,-589.71606137,0.00030133,4]
[311137197,1704929440649,-1030.93287824,0.00030133,4]
[311137198,1704929440659,-179.87891561,0.00030133,4]
[311137199,1704929440669,-4224.70237435,0.00030134,4]
[311137200,1704929440678,-357.21211096,0.00030134,4]
[311137201,1704929440688,-294.36326228,0.00030134,4]
[311137202,1704929440697,-242.51571891,0.00030134,4]
[311137203,1704929440707,-185.19677448,0.00030135,4]
[311137204,1704929440716,-345.23684435,0.00030135,4]
[311137205,1704929440725,-500.0,0.00030136,2]
[311137206,1704929440734,-500.0,0.00030136,2]
[311137208,1704929440743,-500.0,0.00030136,2]
[311137210,1704929440753,-500.0,0.00030136,2]
[311137212,1704929440762,-504.76831012,0.00030136,2]
[311137214,1704929440771,-500.0,0.00030136,2]
[311137216,1704929440781,-419.34890934,0.00030136,2]
[311137218,1704929440793,-500.0,0.00030136,2]
[311137220,1704929440803,-500.0,0.00030136,2]
[311137222,1704929440813,-500.0,0.00030136,2]
[311137224,1704929440827,-500.0,0.00030136,2]
[311137226,1704929440836,-500.0,0.00030136,2]
[311137228,1704929440846,-500.0,0.00030136,2]
[311137230,1704929440856,-500.0,0.00030136,2]
[311137232,1704929440866,-500.0,0.00030136,2]
[311137234,1704929440875,-1001.38259395,0.00030136,2]
[311137236,1704929440885,-500.0,0.00030136,2]
[311137238,1704929440895,-500.0,0.00030136,2]
[311137240,1704929440905,-500.0,0.00030136,2]
[311137242,1704929440915,-500.0,0.00030136,2]
[311137244,1704929440926,-500.0,0.00030136,2]
[311137246,1704929440936,-500.0,0.00030136,2]
[311137248,1704929440945,-500.0,0.00030136,2]
[311137250,1704929440955,-500.0,0.00030136,2]
[311137251,1704929440966,-500.0,0.00030136,2]
[311137252,1704929440976,-500.0,0.00030136,2]
[311137254,1704929440986,-500.0,0.00030136,2]
[311137256,1704929440996,-500.0,0.00030136,2]
[311137258,1704929441005,-282.4939913,0.00030136,2]
[311137260,1704929441015,-420.13288424,0.00030136,2]
[311137261,1704929441025,-500.0,0.00030136,2]
[311137262,1704929441035,-500.0,0.00030136,2]
[311137263,1704929441049,-500.0,0.00030136,2]
[311137264,1704929441058,-500.0,0.00030136,2]
[311137265,1704929441068,-500.0,0.00030136,2]
[311137266,1704929441078,-500.0,0.00030136,2]
[311137267,1704929441087,-500.0,0.00030136,2]
[311137268,1704929441096,-500.0,0.00030136,2]
[311137269,1704929441105,-500.0,0.00030136,2]
[311137270,1704929441115,-500.0,0.00030136,2]
[311137271,1704929441125,-500.0,0.00030136,2]
[311137272,1704929441135,-500.0,0.00030136,2]
[311137273,1704929441144,-500.0,0.00030136,2]
[311137274,1704929441154,-500.0,0.00030136,2]
[311137275,1704929441163,-500.0,0.00030136,2]
[311137276,1704929441172,-500.0,0.00030136,2]
[311137277,1704929441182,-500.0,0.00030136,2]
[311137278,1704929441190,-285.5345867,0.00030136,2]
[311137279,1704929441200,-500.0,0.00030136,2]
[311137280,1704929441209,-504.21942309,0.00030136,2]
[311137281,1704929441219,-500.0,0.00030136,2]
[311137282,1704929441229,-500.0,0.00030136,2]
[311137283,1704929441239,-502.5845982,0.00030136,2]
[311137284,1704929441248,-177.8276672,0.00030136,2]
[311137285,1704929441257,-200.0,0.00030136,2]
[311137286,1704929441267,-500.0,0.00030136,2]
[311137287,1704929441276,-500.0,0.00030136,2]
[311137288,1704929441286,-500.0,0.00030136,2]
[311137289,1704929441302,-631.82750431,0.00030136,2]
[311137290,1704929441312,-500.0,0.00030136,2]
[311137291,1704929441322,-500.0,0.00030136,2]
[311137293,1704929441332,-500.0,0.00030136,2]
[311137295,1704929441342,-500.0,0.00030136,2]
[311137296,1704929441352,-500.0,0.00030136,2]
[311137298,1704929441362,-383.88957127,0.00030136,2]
[311137300,1704929441373,-500.0,0.00030136,2]
[311137302,1704929441382,-500.0,0.00030136,2]
[311137303,1704929441391,-500.0,0.00030136,2]
[311137304,1704929441401,-500.0,0.00030136,2]
[311137306,1704929441411,-500.0,0.00030136,2]
[311137307,1704929441420,-500.0,0.00030136,2]
[311137308,1704929441429,-500.0,0.00030136,2]
[311137309,1704929441438,-154.29729751,0.00030136,2]
[311137310,1704929441448,-500.0,0.00030136,2]
[311137311,1704929441457,-500.0,0.00030136,2]
[311137312,1704929441466,-500.0,0.00030136,2]
[311137313,1704929441475,-500.0,0.00030136,2]
[311137315,1704929441485,-521.91,0.00030136,2]
[311137316,1704929441495,-500.0,0.00030136,2]
[311137317,1704929441504,-500.0,0.00030136,2]
[311137318,1704929441514,-500.0,0.00030136,2]
[311137319,1704929441523,-500.0,0.00030136,2]
[311137320,1704929441533,-504.89947469,0.00030136,2]
[311137321,1704929441545,-500.0,0.00030136,2]
[311137322,1704929441554,-1000.0,0.00030136,2]
[311137323,1704929441563,-500.0,0.00030136,2]
[311137324,1704929441573,-500.0,0.00030136,2]
[311137325,1704929441582,-302.90524066,0.00030136,2]
[311137326,1704929441592,-500.0,0.00030136,2]
[311137327,1704929441601,-500.0,0.00030136,2]
[311137328,1704929441611,-500.0,0.00030136,2]
[311137329,1704929441620,-500.0,0.00030136,2]
[311137331,1704929441630,-500.0,0.00030136,2]
[311137332,1704929441639,-500.0,0.00030136,2]
[311137334,1704929441649,-494.86882139,0.00030136,14]
[311137335,1704929441659,-500.0,0.00030136,2]
[311137337,1704929441669,-503.15109969,0.00030136,2]
[311137338,1704929441678,-500.0,0.00030136,2]
[311137339,1704929441687,-500.0,0.00030136,2]
[311137340,1704929441697,-500.0,0.00030136,2]
[311137341,1704929441706,-500.0,0.00030136,2]
[311137342,1704929441716,-16105.62507718,0.00030136,10]
[311137343,1704929441726,-500.0,0.00030136,2]
[311137344,1704929441736,-509.12236943,0.00030136,2]
[311137345,1704929441746,-500.05,0.00030136,2]
[311137346,1704929441755,-500.0,0.00030136,2]
[311137347,1704929441765,-500.0,0.00030136,2]
[311137348,1704929441775,-500.0,0.00030136,2]
[311137349,1704929441784,-500.0,0.00030136,2]
[311137350,1704929441797,-500.0,0.00030136,2]
[311137351,1704929441808,-500.0,0.00030136,2]
[311137352,1704929441821,-500.0,0.00030136,2]
[311137353,1704929441831,-500.0,0.00030136,2]
[311137354,1704929441840,-500.0,0.00030136,2]
[311137355,1704929441850,-500.0,0.00030136,2]
[311137356,1704929441860,-500.0,0.00030136,2]
[311137357,1704929441870,-500.0,0.00030136,2]
[311137358,1704929441880,-540.95,0.00030136,2]
[311137359,1704929441890,-539.11840372,0.00030136,2]
[311137360,1704929441900,-500.0,0.00030136,2]
[311137361,1704929441910,-500.0,0.00030136,2]
[311137362,1704929441920,-500.0,0.00030136,2]
[311137363,1704929441930,-783.64,0.00030136,2]
[311137364,1704929441940,-783.64,0.00030136,2]
[311137365,1704929441950,-783.64,0.00030136,2]
[311137366,1704929441961,-783.64,0.00030136,2]
[311137367,1704929441972,-783.64,0.00030136,2]
[311137368,1704929441981,-500.0,0.00030136,2]
[311137369,1704929441991,-783.64,0.00030136,2]
[311137370,1704929442001,-783.64,0.00030136,2]
[311137371,1704929442011,-783.64,0.00030136,2]
[311137372,1704929442021,-783.64,0.00030136,2]
[311137373,1704929442031,-783.64,0.00030136,2]
[311137374,1704929442043,-783.64,0.00030136,2]
[311137375,1704929442052,-500.0,0.00030136,2]
[311137376,1704929442061,-500.0,0.00030136,2]
[311137377,1704929442070,-783.64,0.00030136,2]
[311137378,1704929442079,-783.64,0.00030136,2]
[311137379,1704929442088,-783.64,0.00030136,2]
[311137380,1704929442096,-783.64,0.00030136,2]
[311137381,1704929442105,-783.64,0.00030136,2]
[311137382,1704929442115,-783.64,0.00030136,2]
[311137383,1704929442124,-783.64,0.00030136,2]
[311137384,1704929442135,-783.64,0.00030136,2]
[311137385,1704929442144,-783.64,0.00030136,2]
[311137386,1704929442154,-783.64,0.00030136,2]
[311137387,1704929442164,-783.64,0.00030136,2]
[311137388,1704929442174,-783.64,0.00030136,2]
[311137389,1704929442184,-783.83317931,0.00030136,2]
[311137390,1704929442195,-500.0,0.00030136,2]
[311137391,1704929442205,-500.0,0.00030136,2]
[311137392,1704929442214,-500.0,0.00030136,2]
[311137393,1704929442224,-500.0,0.00030136,2]
[311137394,1704929442234,-500.0,0.00030136,2]
[311137395,1704929442244,-500.0,0.00030136,2]
[311137396,1704929442253,-526.78430089,0.00030136,2]
[311137397,1704929442263,-1570.42,0.00030136,2]
[311137398,1704929442272,-500.0,0.00030136,2]
[311137399,1704929442282,-506.15301763,0.00030136,2]
[311137400,1704929442295,-1010.55423829,0.00030136,5]
[311137401,1704929442304,-500.0,0.00030136,2]
[311137402,1704929442313,-500.0,0.00030136,2]
[311137403,1704929442322,-500.0,0.00030136,2]
[311137404,1704929442332,-500.0,0.00030136,2]
[311137405,1704929442341,-500.0,0.00030136,2]
[311137406,1704929442350,-500.0,0.00030136,2]
[311137407,1704929442359,-500.0,0.00030136,2]
[311137408,1704929442368,-202.88905439,0.00030136,2]
[311137409,1704929442378,-500.0,0.00030136,2]
[311137410,1704929442387,-500.0,0.00030136,2]
[311137411,1704929442396,-500.0,0.00030136,2]
[311137412,1704929442405,-509.75,0.00030136,2]
[311137413,1704929442414,-265.52715192,0.00030136,2]
[311137414,1704929442423,-500.0,0.00030136,2]
[311137416,1704929442433,-500.0,0.00030136,2]
[311137418,1704929442442,-500.0,0.00030136,2]
[311137420,1704929442451,-500.0,0.00030136,2]
[311137421,1704929442460,-500.0,0.00030136,2]
[311137422,1704929442469,-456.63432085,0.00030136,2]
[311137424,1704929442478,-500.0,0.00030136,2]
[311137426,1704929442487,-500.0,0.00030136,2]
[311137429,1704929442497,-500.0,0.00030136,2]
[311137430,1704929442505,-500.0,0.00030136,2]
[311137432,1704929442515,-500.0,0.00030136,2]
[311137433,1704929442524,-500.0,0.00030136,2]
[311137434,1704929442533,-500.0,0.00030136,2]
[311137435,1704929442545,-533.52,0.00030136,2]
[311137436,1704929442554,-500.0,0.00030136,2]
[311137437,1704929442563,-500.0,0.00030136,2]
[311137438,1704929442573,-154.99763678,0.00030136,2]
[311137439,1704929442582,-500.0,0.00030136,2]
[311137440,1704929442592,-500.0,0.00030136,2]
[311137441,1704929442600,-500.0,0.00030136,2]
[311137442,1704929442610,-500.0,0.00030136,2]
[311137444,1704929442619,-515.62358603,0.00030136,2]
[311137445,1704929442628,-500.0,0.00030136,2]
[311137446,1704929442638,-500.0,0.00030136,2]
[311137447,1704929442648,-500.0,0.00030136,2]
[311137448,1704929442657,-500.0,0.00030136,2]
[311137450,1704929442666,-500.0,0.00030136,2]
[311137452,1704929442675,-285.49862823,0.00030136,2]
[311137454,1704929442686,-500.0,0.00030136,2]
[311137455,1704929442695,-500.0,0.00030136,2]
[311137457,1704929442801,-644.26,0.00030136,2]
[311137458,1704929442812,-500.0,0.00030136,2]
[311137459,1704929442826,-500.0,0.00030136,2]
[311137460,1704929442836,-500.0,0.00030136,2]
[311137461,1704929442846,-500.0,0.00030136,2]
[311137462,1704929442856,-525.26945881,0.00030136,2]
[311137464,1704929442867,-500.0,0.00030136,2]
[311137465,1704929442876,-220.0,0.00030136,2]
[311137467,1704929442885,-500.0,0.00030136,2]
[311137468,1704929442896,-804.33,0.00030136,2]
[311137469,1704929442904,-501.21878205,0.00030136,2]
[311137471,1704929442914,-500.0,0.00030136,2]
[311137472,1704929442923,-537.54904567,0.00030136,2]
[311137473,1704929442932,-500.0,0.00030136,2]
[311137474,1704929442942,-500.0,0.00030136,2]
[311137475,1704929442952,-500.0,0.00030136,2]
[311137476,1704929442961,-500.0,0.00030136,2]
[311137477,1704929442971,-500.0,0.00030136,2]
[311137478,1704929442980,-500.0,0.00030136,2]
[311137479,1704929442990,-500.0,0.00030136,2]
[311137480,1704929443000,-521.69149168,0.00030136,2]
[311137481,1704929443010,-500.0,0.00030136,2]
[311137483,1704929443019,-500.0,0.00030136,2]
[311137485,1704929443029,-717.82,0.00030136,2]
[311137487,1704929443038,-529.70216635,0.00030136,2]
[311137489,1704929443052,-500.0,0.00030136,2]
[311137492,1704929443062,-500.0,0.00030136,2]
[311137494,1704929443072,-500.0,0.00030136,2]
[311137495,1704929443081,-500.0,0.00030136,2]
[311137497,1704929443090,-500.0,0.00030136,2]
[311137499,1704929443100,-500.0,0.00030136,2]
[311137502,1704929443110,-507.8,0.00030136,2]
[311137503,1704929443119,-500.0,0.00030136,2]
[311137505,1704929443128,-329.63216967,0.00030136,2]
[311137507,1704929443137,-500.0,0.00030136,2]
[311137509,1704929443147,-500.0,0.00030136,2]
[311137511,1704929443156,-12187.55,0.00030136,2]
[311137513,1704929443166,-2647.91,0.00030136,2]
[311137514,1704929443174,-896.88,0.00030136,2]
[311137516,1704929443183,-287.98515762,0.00030136,2]
[311137519,1704929443193,-500.0,0.00030136,2]
[311137522,1704929443202,-500.0,0.00030136,2]
[311137524,1704929443211,-500.0,0.00030136,2]
[311137528,1704929443221,-500.0,0.00030136,2]
[311137531,1704929443230,-500.0,0.00030136,2]
[311137534,1704929443239,-500.0,0.00030136,2]
[311137536,1704929443249,-669.8,0.00030136,2]
[311137538,1704929443258,-500.0,0.00030136,2]
[311137539,1704929443267,-506.168765,0.00030136,2]
[311137541,1704929443277,-245.67677923,0.00030136,2]
[311137543,1704929443286,-500.0,0.00030136,2]
[311137545,1704929443298,-500.0,0.00030136,2]
[311137547,1704929443307,-500.0,0.00030136,2]
[311137549,1704929443316,-584.33519268,0.00030136,2]
[311137551,1704929443325,-500.0,0.00030136,2]
[311137553,1704929443335,-500.0,0.00030136,2]
[311137555,1704929443344,-500.0,0.00030136,2]
[311137557,1704929443354,-500.0,0.00030136,2]
[311137559,1704929443363,-551.98388978,0.00030136,2]
[311137561,1704929443372,-648.63,0.00030136,2]
[311137563,1704929443382,-500.0,0.00030136,2]
[311137565,1704929443391,-2929.19,0.00030136,2]
[311137567,1704929443401,-500.0,0.00030136,2]
[311137569,1704929443410,-513.25278218,0.00030136,2]
[311137571,1704929443419,-500.0,0.00030136,2]
[311137573,1704929443429,-500.0,0.00030136,2]
[311137575,1704929443438,-500.0,0.00030136,2]
[311137577,1704929443447,-500.0,0.00030136,2]
[311137579,1704929443457,-1089.98,0.00030136,2]
[311137581,1704929443467,-500.0,0.00030136,2]
[311137583,1704929443476,-503.86625205,0.00030136,2]
[311137585,1704929443485,-500.0,0.00030136,5]
[311137587,1704929443494,-5377.64,0.00030136,2]
[311137589,1704929443503,-500.0,0.00030136,2]
[311137591,1704929443512,-9420.58,0.00030136,2]
[311137593,1704929443521,-500.0,0.00030136,2]
[311137595,1704929443530,-500.0,0.00030136,2]
[311137597,1704929443539,-500.0,0.00030136,2]
[311137599,1704929443553,-500.0,0.00030136,2]
[311137601,1704929443562,-2764.08,0.00030136,2]
[311137603,1704929443571,-500.0,0.00030136,2]
[311137605,1704929443580,-500.0,0.00030136,2]
[311137607,1704929443590,-500.0,0.00030136,2]
[311137609,1704929443598,-500.0,0.00030136,2]
[311137611,1704929443608,-503.10249183,0.00030136,30]
[311137613,1704929443618,-500.0,0.00030136,2]
[311137615,1704929443628,-506.65770087,0.00030136,2]
[311137617,1704929443638,-469.88941298,0.00030136,2]
[311137619,1704929443647,-500.0,0.00030136,2]
[311137621,1704929443657,-1892.95,0.00030136,2]
[311137623,1704929443667,-500.0,0.00030136,2]
[311137625,1704929443676,-500.0,0.00030136,2]
[311137627,1704929443685,-502.63069071,0.00030136,2]
[311137629,1704929443695,-500.0,0.00030136,2]
[311137631,1704929443704,-500.0,0.00030136,2]
[311137633,1704929443713,-500.30641269,0.00030136,2]
[311137635,1704929443722,-500.0,0.00030136,2]
[311137637,1704929443731,-500.0,0.00030136,2]
[311137638,1704929443740,-500.0,0.00030136,2]
[311137640,1704929443750,-500.0,0.00030136,2]
[311137643,1704929443760,-527.97,0.00030136,2]
[311137645,1704929443771,-737.13,0.00030136,2]
[311137646,1704929443780,-500.0,0.00030136,2]
[311137647,1704929443790,-500.0,0.00030136,2]
[311137648,1704929443803,-500.0,0.00030136,2]
[311137649,1704929443813,-500.0,0.00030136,2]
[311137650,1704929443827,-500.0,0.00030136,2]
[311137651,1704929443836,-909.45,0.00030136,2]
[311137652,1704929443846,-500.0,0.00030136,2]
[311137653,1704929443858,-500.0,0.00030136,2]
[311137654,1704929443868,-501.1581429,0.00030136,2]
[311137655,1704929443877,-521.17339293,0.00030136,2]
[311137656,1704929443886,-1367.63,0.00030136,2]
[311137657,1704929443895,-500.0,0.00030136,2]
[311137658,1704929443905,-500.0,0.00030136,2]
[311137659,1704929443914,-500.0,0.00030136,2]
[311137660,1704929443923,-500.0,0.00030136,2]
[311137661,1704929443933,-500.0,0.00030136,2]
[311137662,1704929443942,-762.58,0.00030136,2]
[311137663,1704929443951,-500.0,0.00030136,2]
[311137664,1704929443960,-1913.4,0.00030136,2]
[311137665,1704929443970,-500.0,0.00030136,2]
[311137666,1704929443979,-500.0,0.00030136,2]
[311137667,1704929443988,-1507.86,0.00030136,2]
[311137668,1704929443997,-500.0,0.00030136,2]
[311137669,1704929444006,-502.72071019,0.00030136,2]
[311137671,1704929444016,-410.5381955,0.00030136,2]
[311137673,1704929444026,-446.21810783,0.00030136,2]
[311137675,1704929444036,-500.0,0.00030136,2]
[311137677,1704929444050,-500.0,0.00030136,2]